fUST/lending_fUST_20260114
["ID","MTS","AMOUNT","RATE_DAILY","PERIOD"]
[401829789,1768383219238,500.0,0.00030136,120]
[401829790,1768383219460,623.78201985,0.00030136,120]
[401829791,1768383221343,500.0,0.00030136,120]
[401829792,1768383221455,-253.24859106,9.459e-05,2]
[401829793,1768383221594,500.0,0.00030136,120]
[401829794,1768383221858,500.0,0.00030136,120]
[401829795,1768383222154,265.97809662,0.00030136,120]
[401829796,1768383223487,-330.0582376,9.459e-05,2]
[401829797,1768383224573,238.63,5.945e-05,2]
[401829798,1768383224950,357.94,6.086e-05,2]
[401829799,1768383225373,477.25,6.228e-05,2]
[401829800,1768383225780,596.56,6.369e-05,2]
[401829801,1768383225903,500.0,0.00030136,120]
[401829802,1768383226135,500.0,0.00030136,120]
[401829803,1768383226198,715.88,6.511e-05,2]
[401829804,1768383226361,500.0,0.00030136,120]
[401829805,1768383226915,500.0,0.00030136,120]
[401829806,1768383226946,-317.98085139,9.459e-05,2]
[401829807,1768383226977,835.19,6.652e-05,2]
[401829808,1768383227052,500.0,0.00030136,120]
[401829809,1768383227129,500.0,0.00030136,120]
[401829810,1768383227166,954.5,6.794e-05,2]
[401829811,1768383227349,500.0,0.00030136,120]
[401829812,1768383227506,1073.81,6.936e-05,2]
[401829813,1768383227584,500.0,0.00030136,120]
[401829814,1768383227826,500.0,0.00030136,120]
[401829815,1768383227932,1193.13,7.077e-05,2]
[401829816,1768383228078,500.0,0.00030136,120]
[401829817,1768383228334,500.0,0.00030136,120]
[401829818,1768383228501,500.0,0.00030136,120]
[401829819,1768383228584,500.0,0.00030136,120]
[401829820,1768383228757,500.0,0.00030136,120]
[401829821,1768383228832,582.67301176,0.00030136,120]
[401829822,1768383229009,500.0,0.00030136,120]
[401829823,1768383229284,500.0,0.00030136,120]
[401829824,1768383229516,500.0,0.00030136,120]
[401829825,1768383229640,-163.04901972,9.459e-05,2]
[401829826,1768383229798,500.0,0.00030136,120]
[401829827,1768383230046,500.0,0.00030136,120]
[401829828,1768383230301,500.0,0.00030136,120]
[401829829,1768383230530,500.0,0.00030136,120]
[401829830,1768383230881,627.8033602,0.00030136,120]
[401829831,1768383231383,500.0,0.00030136,120]
[401829832,1768383231619,500.0,0.00030136,120]
[401829833,1768383231848,523.5348411,0.00030136,120]
[401829834,1768383232992,500.0,0.00030136,120]
[401829835,1768383233359,500.0,0.00030136,120]
[401829836,1768383233605,500.0,0.00030136,120]
[401829837,1768383233831,500.0,0.00030136,120]
[401829838,1768383234166,556.15,0.00030136,120]
[401829839,1768383234212,-259.93105029,9.459e-05,2]
[401829840,1768383235654,-169.60906997,9.459e-05,2]
[401829841,1768383237203,-475.99742899,9.459e-05,2]
[401829842,1768383238773,500.0,0.00030136,120]
[401829843,1768383239021,500.0,0.00030136,120]
[401829844,1768383239267,500.0,0.00030136,120]
[401829845,1768383239522,500.0,0.00030136,120]
[401829846,1768383239763,500.0,0.00030136,120]
[401829847,1768383239985,500.0,0.00030136,120]
[401829848,1768383240233,500.0,0.00030136,120]
[401829849,1768383240461,500.0,0.00030136,120]
[401829850,1768383240726,500.0,0.00030136,120]
[401829851,1768383240967,500.0,0.00030136,120]
[401829852,1768383241229,460.67900168,0.00030136,120]
[401829853,1768383241452,500.0,0.00030136,120]
[401829854,1768383241686,518.93112441,0.00030136,120]
[401829855,1768383242322,214.0,9.458e-05,2]
[401829856,1768383243878,500.0,0.00030136,120]
[401829857,1768383244150,500.0,0.00030136,120]
[401829858,1768383244406,529.01120377,0.00030136,120]
[401829859,1768383246698,500.0,0.00030136,120]
[401829860,1768383246962,504.53987923,0.00030136,120]
[401829861,1768383247284,500.0,0.00030136,120]
[401829862,1768383247576,500.0,0.00030136,120]
[401829863,1768383247846,500.0,0.00030136,120]
[401829864,1768383248074,500.0,0.00030136,120]
[401829865,1768383248324,500.0,0.00030136,120]
[401829866,1768383248597,500.0,0.00030136,120]
[401829867,1768383248843,500.0,0.00030136,120]
[401829868,1768383249101,500.0,0.00030136,120]
[401829869,1768383249363,500.0,0.00030136,120]
[401829870,1768383249800,500.0,0.00030136,120]
[401829871,1768383249834,-221.57,9.459e-05,2]
[401829872,1768383250038,500.0,0.00030136,120]
[401829873,1768383250315,500.0,0.00030136,120]
[401829874,1768383250534,500.0,0.00030136,120]
[401829875,1768383250620,500.0,0.00030136,120]
[401829876,1768383250793,500.0,0.00030136,120]
[401829877,1768383250880,500.0,0.00030136,120]
[401829878,1768383251026,500.0,0.00030136,120]
[401829879,1768383251104,500.0,0.00030136,120]
[401829880,1768383251296,500.0,0.00030136,120]
[401829881,1768383251498,500.0,0.00030136,120]
[401829882,1768383251592,500.0,0.00030136,120]
[401829883,1768383251764,500.0,0.00030136,120]
[401829884,1768383251854,500.0,0.00030136,120]
[401829885,1768383252009,500.0,0.00030136,120]
[401829886,1768383252099,500.0,0.00030136,120]
[401829887,1768383252264,547.08432842,0.00030136,120]
[401829888,1768383252354,500.0,0.00030136,120]
[401829889,1768383252431,-298.30615314,9.459e-05,2]
[401829890,1768383252578,500.0,0.00030136,120]
[401829891,1768383252853,398.80667464,0.00030136,120]
[401829892,1768383254259,500.0,0.00030136,120]
[401829893,1768383254500,500.0,0.00030136,120]
[401829894,1768383254758,500.0,0.00030136,120]
[401829895,1768383255000,312.28263567,0.00030136,120]
[401829896,1768383256112,-167.7802343,9.459e-05,2]
[401829897,1768383257566,-296.88926407,9.459e-05,2]
[401829898,1768383260212,500.0,0.00030136,120]
[401829899,1768383260729,-344.52996672,9.459e-05,2]
[401829900,1768383262783,-326.15835407,9.459e-05,2]
[401829901,1768383265182,-334.78082678,9.459e-05,2]
[401829902,1768383266744,-427.28699744,9.459e-05,2]
[401829903,1768383268065,715.61,0.00030136,120]
[401829904,1768383268300,715.61,0.00030136,120]
[401829905,1768383268540,715.61,0.00030136,120]
[401829906,1768383268765,715.61,0.00030136,120]
[401829907,1768383268990,715.61,0.00030136,120]
[401829908,1768383269240,715.61,0.00030136,120]
[401829909,1768383269470,715.61,0.00030136,120]
[401829910,1768383269701,715.61,0.00030136,120]
[401829911,1768383269958,715.61,0.00030136,120]
[401829912,1768383270188,715.61,0.00030136,120]
[401829913,1768383270352,-152.19587863,9.459e-05,2]
[401829914,1768383270432,715.61,0.00030136,120]
[401829915,1768383270668,715.61,0.00030136,120]
[401829916,1768383270908,715.61,0.00030136,120]
[401829917,1768383271134,715.61,0.00030136,120]
[401829918,1768383271464,715.61,0.00030136,120]
[401829919,1768383271698,715.61,0.00030136,120]
[401829920,1768383271937,715.61,0.00030136,120]
[401829921,1768383272195,715.61,0.00030136,120]
[401829922,1768383272431,715.61,0.00030136,120]
[401829923,1768383272724,715.61,0.00030136,120]
[401829924,1768383272981,715.61,0.00030136,120]
[401829925,1768383273218,715.61,0.00030136,120]
[401829926,1768383273321,-225.87514555,9.459e-05,2]
[401829927,1768383273459,715.61,0.00030136,120]
[401829928,1768383273705,715.66047171,0.00030136,120]
[401829929,1768383273778,500.0,0.00030136,120]
[401829930,1768383273963,516.8256211,0.00030136,120]
[401829931,1768383277093,500.0,0.00030136,120]
[401829932,1768383277519,500.0,0.00030136,120]
[401829933,1768383277647,500.0,0.00030136,120]
[401829934,1768383277687,-259.99429441,9.459e-05,2]
[401829935,1768383277763,500.0,0.00030136,120]
[401829936,1768383277951,500.0,0.00030136,120]
[401829937,1768383278021,500.0,0.00030136,120]
[401829938,1768383278109,500.0,0.00030136,120]
[401829939,1768383278186,500.0,0.00030136,120]
[401829940,1768383278316,500.0,0.00030136,120]
[401829941,1768383278395,500.0,0.00030136,120]
[401829942,1768383280081,500.0,0.00030136,120]
[401829943,1768383280333,500.0,0.00030136,120]
[401829944,1768383280572,500.0,0.00030136,120]
[401829945,1768383280618,-260.75810347,9.459e-05,2]
[401829946,1768383280794,500.0,0.00030136,120]
[401829947,1768383281053,500.0,0.00030136,120]
[401829948,1768383281293,500.0,0.00030136,120]
[401829949,1768383281523,500.0,0.00030136,120]
[401829950,1768383281750,500.0,0.00030136,120]
[401829951,1768383282002,500.0,0.00030136,120]
[401829952,1768383282288,523.82501334,0.00030136,120]
[401829953,1768383282618,-173.51716562,9.459e-05,2]
[401829954,1768383284270,500.0,0.00030136,120]
[401829955,1768383284503,500.0,0.00030136,120]
[401829956,1768383284578,521.12513709,0.00030136,120]
[401829957,1768383284784,500.0,0.00030136,120]
[401829958,1768383284829,-207.41387787,9.459e-05,2]
[401829959,1768383285013,500.0,0.00030136,120]
[401829960,1768383285257,500.0,0.00030136,120]
[401829961,1768383285494,500.0,0.00030136,120]
[401829962,1768383285718,500.0,0.00030136,120]
[401829963,1768383285958,500.0,0.00030136,120]
[401829964,1768383286192,500.0,0.00030136,120]
[401829965,1768383286440,500.0,0.00030136,120]
[401829966,1768383286668,500.0,0.00030136,120]
[401829967,1768383286910,508.64334722,0.00030136,120]
[401829968,1768383288144,-340.27734342,9.459e-05,2]
[401829969,1768383289624,-331.48209646,9.459e-05,2]
[401829970,1768383291073,-464.21349406,9.459e-05,2]
[401829971,1768383293685,-328.24929525,9.459e-05,2]
[401829972,1768383301616,224.5,5.892e-05,2]
[401829973,1768383301739,533.27872137,0.00030136,120]
[401829974,1768383302027,336.75,6.032e-05,2]
[401829975,1768383302220,300.0,9.458e-05,2]
[401829976,1768383302469,449.0,6.173e-05,2]
[401829977,1768383302549,300.0,9.458e-05,2]
[401829978,1768383302887,561.25,6.313e-05,2]
[401829979,1768383303065,871.62,9.458e-05,2]
[401829980,1768383303089,328.38,9.458e-05,2]
[401829981,1768383303182,890.0,0.00028767,120]
[401829982,1768383303337,587.7849167,0.00030137,120]
[401829983,1768383303379,673.5,6.453e-05,2]
[401829984,1768383303702,785.75,6.594e-05,2]
[401829985,1768383304088,898.0,6.734e-05,2]
[401829986,1768383304507,1010.25,6.874e-05,2]
[401829987,1768383304753,500.0,0.00030136,120]
[401829988,1768383304922,1122.5,7.014e-05,2]
[401829989,1768383305005,500.0,0.00030136,120]
[401829990,1768383305103,500.0,0.00030136,120]
[401829991,1768383305204,500.0,0.00030136,120]
[401829992,1768383305375,500.0,0.00030136,120]
[401829993,1768383305455,500.0,0.00030136,120]
[401829994,1768383305617,500.0,0.00030136,120]
[401829995,1768383305710,500.0,0.00030136,120]
[401829996,1768383305853,500.0,0.00030136,120]
[401829997,1768383305933,500.0,0.00030136,120]
[401829998,1768383305992,5181.63,9e-05,2]
[401829999,1768383306015,10000.01,9e-05,2]
[401830000,1768383306038,10000.01,9e-05,2]
[401830001,1768383306061,10000.01,9e-05,2]
[401830002,1768383306082,10000.01,9e-05,2]
[401830003,1768383306104,10000.01,9e-05,2]
[401830004,1768383306125,10000.01,9e-05,2]
[401830005,1768383306147,10000.01,9e-05,2]
[401830006,1768383306170,10000.01,9e-05,2]
[401830007,1768383306261,500.0,0.00030136,120]
[401830008,1768383306350,500.0,0.00030136,120]
[401830009,1768383306444,500.0,0.00030136,120]
[401830010,1768383306537,500.0,0.00030136,120]
[401830011,1768383306639,500.0,0.00030136,120]
[401830012,1768383306720,500.0,0.00030136,120]
[401830013,1768383306812,500.0,0.00030136,120]
[401830014,1768383306892,500.0,0.00030136,120]
[401830015,1768383307083,502.25482501,0.00030136,120]
[401830016,1768383307170,500.0,0.00030136,120]
[401830017,1768383307370,530.03728743,0.00030136,120]
[401830018,1768383308974,500.0,0.00030136,120]
[401830019,1768383309243,500.0,0.00030136,120]
[401830020,1768383309272,-166.46978624,9e-05,2]
[401830021,1768383309469,546.39778986,0.00030136,120]
[401830022,1768383310776,505.15042959,0.00030136,120]
[401830023,1768383311228,504.54677126,0.00030136,120]
[401830024,1768383311265,-261.97235303,9e-05,2]
[401830025,1768383313924,509.71982756,0.00030136,120]
[401830026,1768383314679,-174.92844212,9e-05,2]
[401830027,1768383316872,-178.51215727,9e-05,2]
[401830028,1768383318397,500.0,0.00030136,120]
[401830029,1768383318606,500.0,0.00030136,120]
[401830030,1768383318801,500.0,0.00030136,120]
[401830031,1768383318905,500.0,0.00030136,120]
[401830032,1768383319024,500.0,0.00030136,120]
[401830033,1768383319252,510.05648825,0.00030136,120]
[401830034,1768383319338,500.0,0.00030136,120]
[401830035,1768383319558,500.0,0.00030136,120]
[401830036,1768383319817,500.0,0.00030136,120]
[401830037,1768383319992,-196.51,9e-05,2]
[401830038,1768383320076,500.0,0.00030136,120]
[401830039,1768383320298,500.0,0.00030136,120]
[401830040,1768383320544,500.0,0.00030136,120]
[401830041,1768383320795,500.0,0.00030136,120]
[401830042,1768383321049,514.87178026,0.00030136,120]
[401830043,1768383323056,500.0,0.00030136,120]
[401830044,1768383323108,-371.27309417,9e-05,2]
[401830045,1768383323293,506.54532282,0.00030136,120]
[401830046,1768383325252,500.0,0.00030136,120]
[401830047,1768383325499,500.0,0.00030136,120]
[401830048,1768383325719,500.0,0.00030136,120]
[401830049,1768383325767,-426.47224628,9e-05,2]
[401830050,1768383326025,500.0,0.00030136,120]
[401830051,1768383326250,500.0,0.00030136,120]
[401830052,1768383326463,500.0,0.00030136,120]
[401830053,1768383326688,500.0,0.00030136,120]
[401830054,1768383326907,530.17222973,0.00030136,120]
[401830055,1768383328213,500.0,0.00030136,120]
[401830056,1768383328663,500.0,0.00030136,120]
[401830057,1768383328937,500.0,0.00030136,120]
[401830058,1768383329015,-217.6,9e-05,2]
[401830059,1768383329165,500.0,0.00030136,120]
[401830060,1768383329422,500.0,0.00030136,120]
[401830061,1768383329694,500.0,0.00030136,120]
[401830062,1768383329922,500.0,0.00030136,120]
[401830063,1768383330201,500.0,0.00030136,120]
[401830064,1768383330460,500.0,0.00030136,120]
[401830065,1768383330886,500.0,0.00030136,120]
[401830066,1768383331141,500.0,0.00030136,120]
[401830067,1768383331389,500.0,0.00030136,120]
[401830068,1768383331723,500.0,0.00030136,120]
[401830069,1768383331989,500.0,0.00030136,120]
[401830070,1768383332242,606.0,0.00030136,120]
[401830071,1768383332403,-268.44803052,9e-05,2]
[401830072,1768383333222,500.0,0.00030136,120]
[401830073,1768383333459,500.0,0.00030136,120]
[401830074,1768383334166,500.0,0.00030136,120]
[401830075,1768383334450,500.0,0.00030136,120]
[401830076,1768383334702,500.0,0.00030136,120]
[401830077,1768383334966,500.0,0.00030136,120]
[401830078,1768383335194,500.0,0.00030136,120]
[401830079,1768383335440,500.0,0.00030136,120]
[401830080,1768383335467,-958.41336814,9e-05,2]
[401830081,1768383335694,500.0,0.00030136,120]
[401830082,1768383335968,500.0,0.00030136,120]
[401830083,1768383336205,558.84,0.00030136,120]
[401830084,1768383337360,801.17,0.00030136,120]
[401830085,1768383337785,801.17,0.00030136,120]
[401830086,1768383337880,801.17,0.00030136,120]
[401830087,1768383338119,500.0,0.00030136,120]
[401830088,1768383338203,801.17,0.00030136,120]
[401830089,1768383338394,500.0,0.00030136,120]
[401830090,1768383338477,801.17,0.00030136,120]
[401830091,1768383338566,500.0,0.00030136,120]
[401830092,1768383338659,500.0,0.00030136,120]
[401830093,1768383338742,801.17,0.00030136,120]
[401830094,1768383338830,500.0,0.00030136,120]
[401830095,1768383339051,500.0,0.00030136,120]
[401830096,1768383339146,801.17,0.00030136,120]
[401830097,1768383339237,510.17806989,0.00030136,120]
[401830098,1768383339332,500.0,0.00030136,120]
[401830099,1768383339416,801.17,0.00030136,120]
[401830100,1768383339514,500.0,0.00030136,120]
[401830101,1768383339596,801.17,0.00030136,120]
[401830102,1768383339688,500.0,0.00030136,120]
[401830103,1768383339785,801.17,0.00030136,120]
[401830104,1768383339886,500.0,0.00030136,120]
[401830105,1768383339983,801.17,0.00030136,120]
[401830106,1768383340065,500.0,0.00030136,120]
[401830107,1768383340177,801.17,0.00030136,120]
[401830108,1768383340294,500.0,0.00030136,120]
[401830109,1768383340531,500.0,0.00030136,120]
[401830110,1768383340734,801.17,0.00030136,120]
[401830111,1768383340816,500.0,0.00030136,120]
[401830112,1768383341006,801.17,0.00030136,120]
[401830113,1768383341086,500.0,0.00030136,120]
[401830114,1768383341271,801.17,0.00030136,120]
[401830115,1768383341396,500.0,0.00030136,120]
[401830116,1768383341531,801.17,0.00030136,120]
[401830117,1768383341628,500.0,0.00030136,120]
[401830118,1768383341768,801.17,0.00030136,120]
[401830119,1768383341904,500.0,0.00030136,120]
[401830120,1768383341988,801.17,0.00030136,120]
[401830121,1768383342014,-203.20803785,9e-05,2]
[401830122,1768383342134,500.0,0.00030136,120]
[401830123,1768383342258,801.17,0.00030136,120]
[401830124,1768383342369,500.0,0.00030136,120]
[401830125,1768383342512,801.17,0.00030136,120]
[401830126,1768383342621,500.0,0.00030136,120]
[401830127,1768383342728,801.17,0.00030136,120]
[401830128,1768383342830,500.0,0.00030136,120]
[401830129,1768383343034,801.17,0.00030136,120]
[401830130,1768383343123,500.0,0.00030136,120]
[401830131,1768383343266,801.17,0.00030136,120]
[401830132,1768383343354,528.15464165,0.00030136,120]
[401830133,1768383343533,801.32,0.00030136,120]
[401830134,1768383344622,-300.0,9e-05,2]
[401830135,1768383346161,-168.07811467,9e-05,2]
[401830136,1768383349627,-222.14267006,9e-05,2]
[401830137,1768383351797,-283.55003313,9e-05,2]
[401830138,1768383352312,500.0,0.00030136,120]
[401830139,1768383352578,500.0,0.00030136,120]
[401830140,1768383352805,500.0,0.00030136,120]
[401830141,1768383353049,500.0,0.00030136,120]
[401830142,1768383353300,500.0,0.00030136,120]
[401830143,1768383353330,-214.78005904,9e-05,2]
[401830144,1768383353559,500.0,0.00030136,120]
[401830145,1768383353823,500.0,0.00030136,120]
[401830146,1768383354045,548.46397945,0.00030136,120]
[401830147,1768383354136,500.0,0.00030136,120]
[401830148,1768383354297,500.0,0.00030136,120]
[401830149,1768383354555,500.0,0.00030136,120]
[401830150,1768383354790,516.62962382,0.00030136,120]
[401830151,1768383358007,-189.33640075,9e-05,2]
[401830152,1768383359411,526.91211149,0.00030136,120]
[401830153,1768383360630,-241.89622822,9e-05,2]
[401830154,1768383364739,-166.87320141,8.999e-05,2]
[401830155,1768383365083,503.78482576,0.00030136,120]
[401830156,1768383367019,-133.12679859,8.999e-05,2]
[401830157,1768383367040,-67.10280411,9e-05,2]
[401830158,1768383367528,500.0,0.00030136,120]
[401830159,1768383368131,500.0,0.00030136,120]
[401830160,1768383368412,500.96440998,0.00030136,120]
[401830161,1768383369272,-300.0,9e-05,2]
[401830162,1768383370622,500.0,0.00030136,120]
[401830163,1768383370845,500.0,0.00030136,120]
[401830164,1768383371253,-166.19165126,9e-05,2]
[401830165,1768383373115,630.69910991,0.00030136,120]
[401830166,1768383374447,-207.63554956,9e-05,2]
[401830167,1768383375010,500.0,0.00030136,120]
[401830168,1768383375286,500.0,0.00030136,120]
[401830169,1768383375572,500.0,0.00030136,120]
[401830170,1768383376177,500.0,0.00030136,120]
[401830171,1768383376217,424.14,7.042e-05,2]
[401830172,1768383376307,500.0,0.00030136,120]
[401830173,1768383376340,-449.35467069,9e-05,2]
[401830174,1768383376439,500.0,0.00030136,120]
[401830175,1768383376549,848.29,7.214e-05,2]
[401830176,1768383376696,500.0,0.00030136,120]
[401830177,1768383376798,1272.43,7.386e-05,2]
[401830178,1768383376880,500.0,0.00030136,120]
[401830179,1768383377113,500.0,0.00030136,120]
[401830180,1768383377202,1696.57,7.557e-05,2]
[401830181,1768383377347,500.0,0.00030136,120]
[401830182,1768383377555,500.0,0.00030136,120]
[401830183,1768383377809,500.0,0.00030136,120]
[401830184,1768383378252,500.0,0.00030136,120]
[401830185,1768383378355,-263.0463412,7.729e-05,2]
[401830186,1768383378456,524.86159191,0.00030136,120]
[401830187,1768383378682,-1857.6736588,7.729e-05,2]
[401830188,1768383378712,-2544.86,7.901e-05,2]
[401830189,1768383378989,-2969.0,8.073e-05,2]
[401830190,1768383379018,-668.87,8.244e-05,2]
[401830191,1768383379124,-2724.27,8.244e-05,2]
[401830192,1768383379330,-3817.29,8.416e-05,2]
[401830193,1768383379758,-168.25098877,9e-05,2]
[401830194,1768383381773,-181.1805002,8.588e-05,2]
[401830195,1768383382207,-4060.2494998,8.588e-05,2]
[401830196,1768383382954,-6520.09935463,9e-05,2]
[401830197,1768383382991,-10000.01,9e-05,2]
[401830198,1768383383065,-10000.01,9e-05,2]
[401830199,1768383383169,-10000.01,9e-05,2]
[401830200,1768383384806,-10000.01,9e-05,2]
[401830201,1768383384982,-10000.01,9e-05,2]
[401830202,1768383385104,-10000.01,9e-05,2]
[401830203,1768383385228,-10000.01,9e-05,2]
[401830204,1768383385358,-10000.01,9e-05,2]
[401830205,1768383386521,500.0,0.00030136,120]
[401830206,1768383386558,-309.82486322,9e-05,2]
[401830207,1768383386763,500.0,0.00030136,120]
[401830208,1768383387002,500.0,0.00030136,120]
[401830209,1768383387314,500.0,0.00030136,120]
[401830210,1768383387547,500.0,0.00030136,120]
[401830211,1768383387692,500.0,0.00030136,120]
[401830212,1768383387776,500.0,0.00030136,120]
[401830213,1768383388136,500.0,0.00030136,120]
[401830214,1768383388217,500.0,0.00030136,120]
[401830215,1768383388301,500.0,0.00030136,120]
[401830216,1768383388384,433.95991386,0.00030136,120]
[401830217,1768383388477,500.0,0.00030136,120]
[401830218,1768383388740,500.0,0.00030136,120]
[401830219,1768383388976,500.0,0.00030136,120]
[401830220,1768383389003,-311.09970819,9e-05,2]
[401830221,1768383389222,500.0,0.00030136,120]
[401830222,1768383389370,661.27,0.00030136,120]
[401830223,1768383389451,500.0,0.00030136,120]
[401830224,1768383389606,661.27,0.00030136,120]
[401830225,1768383389742,500.0,0.00030136,120]
[401830226,1768383389939,661.27,0.00030136,120]
[401830227,1768383390054,661.27,0.00030136,120]
[401830228,1768383390232,534.68667513,0.00030136,120]
[401830229,1768383390311,661.27,0.00030136,120]
[401830230,1768383390554,661.27,0.00030136,120]
[401830231,1768383390783,661.27,0.00030136,120]
[401830232,1768383391053,661.27,0.00030136,120]
[401830233,1768383391317,661.27,0.00030136,120]
[401830234,1768383391554,661.27,0.00030136,120]
[401830235,1768383391805,661.27,0.00030136,120]
[401830236,1768383392054,500.0,0.00030136,120]
[401830237,1768383392137,661.27,0.00030136,120]
[401830238,1768383392264,500.0,0.00030136,120]
[401830239,1768383392345,500.0,0.00030136,120]
[401830240,1768383392427,661.27,0.00030136,120]
[401830241,1768383392541,506.72896822,0.00030136,120]
[401830242,1768383392625,661.27,0.00030136,120]
[401830243,1768383392801,661.27,0.00030136,120]
[401830244,1768383393350,661.27,0.00030136,120]
[401830245,1768383393611,661.27,0.00030136,120]
[401830246,1768383393761,500.0,0.00030136,120]
[401830247,1768383393798,-438.12227503,9e-05,2]
[401830248,1768383393884,661.27,0.00030136,120]
[401830249,1768383394041,500.0,0.00030136,120]
[401830250,1768383394125,661.27,0.00030136,120]
[401830251,1768383394279,500.0,0.00030136,120]
[401830252,1768383394368,661.27,0.00030136,120]
[401830253,1768383394537,500.0,0.00030136,120]
[401830254,1768383394618,661.27,0.00030136,120]
[401830255,1768383394767,500.0,0.00030136,120]
[401830256,1768383394884,661.27,0.00030136,120]
[401830257,1768383394992,500.0,0.00030136,120]
[401830258,1768383395154,661.27,0.00030136,120]
[401830259,1768383395250,464.3952866,0.00030136,120]
[401830260,1768383395386,661.48,0.00030136,120]
[401830261,1768383398163,-223.14866933,9e-05,2]
[401830262,1768383399279,500.0,0.00030136,120]
[401830263,1768383399485,500.0,0.00030136,120]
[401830264,1768383399740,500.0,0.00030136,120]
[401830265,1768383400075,500.0,0.00030136,120]
[401830266,1768383400275,500.0,0.00030136,120]
[401830267,1768383400533,500.0,0.00030136,120]
[401830268,1768383400777,500.0,0.00030136,120]
[401830269,1768383400998,500.0,0.00030136,120]
[401830270,1768383401278,510.26671543,0.00030136,120]
[401830271,1768383401306,-156.72820523,9e-05,2]
[401830272,1768383401865,500.0,0.00030136,120]
[401830273,1768383402122,500.0,0.00030136,120]
[401830274,1768383402382,231.56957599,0.00030136,120]
[401830275,1768383404514,623.63380656,0.00030136,120]
[401830276,1768383404663,-210.2553064,9e-05,2]
[401830277,1768383406438,500.0,0.00030136,120]
[401830278,1768383406678,500.0,0.00030136,120]
[401830279,1768383406755,-187.32214499,9e-05,2]
[401830280,1768383406905,500.0,0.00030136,120]
[401830281,1768383407136,500.0,0.00030136,120]
[401830282,1768383407387,500.0,0.00030136,120]
[401830283,1768383407636,500.0,0.00030136,120]
[401830284,1768383407857,500.0,0.00030136,120]
[401830285,1768383408115,500.0,0.00030136,120]
[401830286,1768383408371,500.0,0.00030136,120]
[401830287,1768383408608,510.32924233,0.00030136,120]
[401830288,1768383408773,-295.77226088,9e-05,2]